bitfinex/quotes_BTCUSD_20250623
["timestamp","ask_amount","ask_price","bid_price","bid_amount"]
[1750641378254,0.4416178,101050.0,101040.0,0.08314132]
[1750641378711,0.4088178,101050.0,101040.0,0.07914132]
[1750641378936,0.4098178,101050.0,101040.0,0.08814132]
[1750641379579,0.4098178,101050.0,101040.0,0.09214132]
[1750641380041,0.4102178,101050.0,101040.0,0.09214132]
[1750641381070,0.4098178,101050.0,101040.0,0.09214132]
[1750641381342,0.4102178,101050.0,101040.0,0.09214132]
[1750641382002,0.4098178,101050.0,101040.0,0.09214132]
[1750641383083,0.4098178,101050.0,101040.0,0.013]
[1750641383084,0.4403178,101050.0,101040.0,0.013]
[1750641383932,0.4587178,101050.0,101040.0,0.013]
[1750641384784,0.4577178,101050.0,101030.0,0.00013913]
[1750641384999,0.3641378,101040.0,101030.0,0.00013913]
[1750641386083,0.3641378,101040.0,101030.0,0.00913913]
[1750641386295,0.3641378,101040.0,101030.0,0.01313913]
[1750641387374,0.4403178,101050.0,101030.0,0.04423913]
[1750641387855,0.3641378,101050.0,101040.0,0.07914132]
[1750641388076,0.04468,101050.0,101040.0,0.14178132]
[1750641388979,0.04568,101050.0,101040.0,0.14178132]
[1750641389410,0.04468,101050.0,101040.0,0.14178132]
[1750641389627,0.04568,101050.0,101040.0,0.16853757]
[1750641390501,0.3773823,101060.0,101040.0,0.16853757]
[1750641391388,0.3773823,101060.0,101040.0,0.15753757]
[1750641391614,0.3783823,101060.0,101040.0,0.16553757]
[1750641391834,0.4088823,101060.0,101040.0,0.11724132]
[1750641392067,0.3641378,101050.0,101040.0,0.11724132]
[1750641393411,0.3641378,101050.0,101040.0,0.008]
[1750641393642,0.3645378,101050.0,101040.0,0.008]
[1750641393862,0.3958378,101050.0,101030.0,0.03073913]
[1750641394118,0.3641378,101040.0,101030.0,0.00013913]
[1750641395226,0.3641378,101040.0,101030.0,0.00913913]
[1750641395671,0.3641378,101040.0,101030.0,0.00013913]
[1750641395883,0.7041378,101040.0,101030.0,0.00013913]
[1750641396306,0.34,101040.0,101030.0,0.00413913]
[1750641396996,0.341,101040.0,101030.0,0.01513913]
[1750641397889,0.37572434,101040.0,101030.0,0.01513913]
[1750641399214,0.73986214,101040.0,101030.0,0.01513913]
[1750641400570,0.39986214,101040.0,101030.0,0.01513913]
[1750641401220,0.03572434,101040.0,101030.0,0.04723913]
[1750641401410,0.03572434,101040.0,101030.0,0.08007913]
[1750641402768,0.37572434,101040.0,101030.0,0.08007913]
[1750641403483,0.73986214,101040.0,101030.0,0.04723913]
[1750641403710,0.73986214,101040.0,101030.0,0.01513913]
[1750641404451,0.90274214,101040.0,101030.0,0.01513913]
[1750641404665,0.95198921,101040.0,101030.0,0.01113913]
[1750641404900,0.95098923,101040.0,101030.0,0.00013913]
[1750641405119,0.91898923,101040.0,101030.0,0.00913913]
[1750641405363,0.91858923,101040.0,101030.0,0.01113913]
[1750641405596,0.91758923,101040.0,101030.0,0.00013913]
[1750641405824,0.91758923,101040.0,101030.0,0.03223913]
[1750641406059,0.91858923,101040.0,101030.0,0.04023913]
[1750641408810,0.91858748,101040.0,101030.0,0.00813913]
[1750641409238,0.93715235,101040.0,101030.0,0.00813913]
[1750641409596,0.91858748,101040.0,101030.0,0.00813913]
[1750641410014,0.93714999,101040.0,101030.0,0.00813913]
[1750641410374,1.13991983,101040.0,101030.0,0.00813913]
[1750641410656,1.15616204,101040.0,101030.0,0.00813913]
[1750641411017,1.15656204,101040.0,101030.0,0.00813913]
[1750641411224,1.20496204,101040.0,101030.0,0.00813913]
[1750641411427,1.22872038,101040.0,101030.0,0.00813913]
[1750641412066,1.21032038,101040.0,101030.0,0.00813913]
[1750641413284,1.2103179,101040.0,101030.0,0.00813913]
[1750641414773,1.2400949,101040.0,101030.0,0.00813913]
[1750641415643,1.24008909,101040.0,101030.0,0.00813913]
[1750641416290,1.24007379,101040.0,101030.0,0.00813913]
[1750641417347,1.24007108,101040.0,101030.0,0.00813913]
[1750641417768,1.24007108,101040.0,101030.0,0.02298613]
[1750641417976,1.29442973,101040.0,101030.0,0.02298613]
[1750641418186,1.24007108,101040.0,101030.0,0.02298613]
[1750641419012,1.23967108,101040.0,101030.0,0.02298613]
[1750641419218,1.28459108,101040.0,101030.0,0.02298613]
[1750641419865,1.06471642,101040.0,101030.0,0.02298613]
[1750641420924,1.03471642,101040.0,101030.0,0.02298613]
[1750641421360,1.12625554,101040.0,101010.0,0.0523]
[1750641421578,0.58315298,101020.0,101000.0,0.08314132]
[1750641421806,1.16007298,101010.0,101000.0,0.08360518]
[1750641422032,1.1648558,101010.0,101000.0,0.08360518]
[1750641422243,1.1946408,101010.0,101000.0,0.08360518]
[1750641422480,1.1946408,101010.0,101000.0,0.0931557]
[1750641422481,0.029785,101010.0,101000.0,0.0931557]
[1750641422715,0.34,101010.0,101000.0,0.08478518]
[1750641422916,0.63157649,101010.0,101000.0,0.08478518]
[1750641423391,0.63257649,101010.0,101000.0,0.09378518]
[1750641424419,0.63257649,101010.0,101000.0,0.15618518]
[1750641424629,0.341,101010.0,101000.0,0.1718137]
[1750641424832,0.63257649,101010.0,101000.0,0.15618518]
[1750641425050,0.341,101010.0,101000.0,0.15618518]
[1750641425259,0.63257649,101010.0,101000.0,0.15618518]
[1750641427625,0.576739,101030.0,101000.0,0.15618518]
[1750641427838,0.29157649,101010.0,101000.0,0.15618518]
[1750641428783,0.29157649,101010.0,101000.0,0.14718518]
[1750641428996,0.29157649,101010.0,101000.0,0.15018518]
[1750641429200,0.32065053,101010.0,101000.0,0.15018518]
[1750641429412,0.32065053,101010.0,101000.0,0.14718518]
[1750641430929,0.32165053,101010.0,101000.0,0.15118518]
[1750641431793,0.03007404,101010.0,101000.0,0.15118518]
[1750641431983,0.32165053,101010.0,101000.0,0.15118518]
[1750641433311,0.32165053,101010.0,101000.0,0.15122518]
[1750641434909,0.66165053,101010.0,101000.0,0.15122518]
[1750641435801,0.37007404,101010.0,101000.0,0.15122518]
[1750641436019,0.001,101010.0,101000.0,0.1663577]
[1750641437997,0.001,101010.0,101000.0,0.16883274]
[1750641438203,0.001,101010.0,101000.0,0.15122518]
[1750641443854,0.29257649,101010.0,101000.0,0.07208386]
[1750641444686,0.001,101010.0,101000.0,0.07208386]
[1750641444910,0.29257649,101010.0,101000.0,0.07208386]
[1750641445124,0.001,101010.0,101000.0,0.07208386]
[1750641445338,0.29257649,101010.0,101000.0,0.07208386]
[1750641449137,0.63257649,101010.0,101000.0,0.07208386]
[1750641449574,0.63257649,101010.0,101000.0,0.00846386]
[1750641449793,0.92415298,101010.0,101000.0,0.00846386]
[1750641450269,0.98755298,101010.0,101000.0,0.00846386]
[1750641450500,0.99451429,101010.0,101000.0,0.00846386]
[1750641450947,1.20131429,101010.0,101000.0,0.00846386]
[1750641452281,0.69497649,101000.0,100990.0,0.0001]
[1750641452741,0.72980684,101000.0,100990.0,0.0001]
[1750641452958,0.72051712,101000.0,100990.0,0.0001]
[1750641453658,0.72051712,101000.0,100990.0,0.0051]
[1750641453659,0.72151712,101000.0,100990.0,0.0051]
[1750641454378,0.72051712,101000.0,100990.0,0.0031]
[1750641454590,0.72151712,101000.0,100990.0,0.0081]
[1750641455028,0.72151712,101000.0,100990.0,0.0091]
[1750641455457,0.7214928,101000.0,100990.0,0.0091]
[1750641456147,0.7210928,101000.0,100990.0,0.0091]
[1750641456350,0.29257649,101000.0,100990.0,0.07552]
[1750641462427,0.29257649,101000.0,100990.0,0.09099613]
[1750641462428,0.63257649,101000.0,100990.0,0.09099613]
[1750641462646,0.341,101000.0,100990.0,0.09099613]
[1750641462860,0.63257649,101000.0,100990.0,0.09099613]
[1750641463075,0.341,101000.0,100990.0,0.07552]
[1750641463515,0.63257649,101000.0,100990.0,0.07552]
[1750641464868,0.341,101000.0,100990.0,0.07552]
[1750641466690,0.001,101000.0,100990.0,0.36957183]
[1750641466915,0.001,101000.0,100990.0,0.41197781]
[1750641467370,0.001,101000.0,100990.0,0.57433781]
[1750641468206,0.001,101000.0,100990.0,0.28276132]
[1750641468425,0.001,101000.0,100990.0,0.23788]
[1750641468853,0.001,101000.0,100990.0,0.07552]
[1750641469479,0.001,101000.0,100990.0,0.07799515]
[1750641470830,0.34,101020.0,101000.0,0.0628]
[1750641471047,0.29157649,101010.0,101000.0,0.03173921]
[1750641472336,0.29157649,101010.0,101000.0,0.03292921]
[1750641472814,0.29257649,101010.0,101000.0,0.03292921]
[1750641473265,0.29257649,101010.0,101000.0,0.03173921]
[1750641473483,0.29257649,101010.0,101000.0,0.00013921]
[1750641473484,0.95485298,101010.0,101000.0,0.00013921]
[1750641473726,0.98685298,101010.0,101000.0,0.00113921]
[1750641473944,0.98725298,101010.0,101000.0,0.00113921]
[1750641474158,0.98725298,101010.0,101000.0,0.00013921]
[1750641474596,0.98825298,101010.0,101000.0,0.00313921]
[1750641474817,0.95585298,101010.0,101000.0,0.00313921]
[1750641475028,0.97438814,101010.0,101000.0,0.00313921]
[1750641475463,0.97288859,101010.0,101000.0,0.00313921]
[1750641475683,0.71226214,101010.0,101000.0,0.00313921]
[1750641476135,0.71226214,101010.0,101000.0,0.06543921]
[1750641476349,0.69372698,101010.0,101000.0,0.07318313]
[1750641477050,0.69372698,101010.0,101000.0,0.06662921]
[1750641478093,0.69372698,101010.0,101000.0,0.03572921]
[1750641479374,0.69372698,101010.0,101000.0,0.00313921]
[1750641481336,1.04710347,101010.0,101000.0,0.00313921]
[1750641481558,1.06564286,101010.0,101000.0,0.00313921]
[1750641482854,1.03434286,101010.0,101000.0,0.00313921]
[1750641483099,0.71226637,101010.0,101000.0,0.00313921]
[1750641486414,1.00384286,101010.0,101000.0,0.00313921]
[1750641486653,1.04260379,101010.0,101000.0,0.00313921]
[1750641487120,1.23772379,101010.0,101000.0,0.00313921]
[1750641487342,1.23812379,101010.0,101000.0,0.00313921]
[1750641488938,0.63157649,101000.0,100990.0,0.0001]
[1750641489172,0.71361588,101000.0,100990.0,0.0001]
[1750641489416,0.75797588,101000.0,100990.0,0.0001]
[1750641489850,0.75800256,101000.0,100990.0,0.0001]
[1750641490073,0.76496219,101000.0,100990.0,0.0001]
[1750641490284,0.4743857,101000.0,100990.0,0.0061]
[1750641490942,0.4739857,101000.0,100990.0,0.0061]
[1750641491167,0.4739857,101000.0,100990.0,0.07249]
[1750641491168,0.01956607,101000.0,100990.0,0.07249]
[1750641491394,0.001,101000.0,100990.0,0.07249]
[1750641491614,0.001,101000.0,100990.0,0.08766313]
[1750641492091,0.001,101000.0,100990.0,0.07249]
[1750641492996,0.001,101000.0,100990.0,0.36429416]
[1750641494341,0.001,101000.0,100990.0,0.07249]
[1750641494575,0.001,101000.0,100990.0,0.36676932]
[1750641494792,0.001,101000.0,100990.0,0.36429416]
[1750641495250,0.001,101000.0,100990.0,0.13751155]
[1750641495969,0.001,101000.0,100990.0,0.13998671]
[1750641497728,0.001,101000.0,100990.0,0.13751155]
[1750641497953,0.001,101000.0,100990.0,0.07249]
[1750641505162,0.001,101000.0,100990.0,0.00725]
[1750641506747,0.001,101000.0,100990.0,0.06975]
[1750641513820,0.001,101000.0,100990.0,0.36402947]
[1750641514033,0.001,101000.0,100990.0,0.11407708]
[1750641514249,0.001,101000.0,100990.0,0.07222515]
[1750641515776,0.001,101000.0,100990.0,0.23446515]
[1750641515986,0.001,101000.0,100990.0,0.23199]
[1750641519224,0.001,101000.0,100990.0,0.06975]
[1750641519450,0.001,101000.0,100990.0,0.00725]
[1750641519666,0.49278957,101030.0,100990.0,0.00725]
[1750641519891,0.55139248,101030.0,100990.0,0.06801357]
[1750641520100,0.029785,101020.0,100990.0,0.06801357]
[1750641520305,0.06461968,101020.0,100990.0,0.06801357]
[1750641520540,0.06461994,101020.0,100990.0,0.06201357]
[1750641520771,0.06461994,101020.0,100990.0,0.06301357]
[1750641521432,0.06461994,101020.0,100990.0,0.06201357]
[1750641521618,0.06461994,101020.0,100990.0,0.06301357]
[1750641521845,0.06501994,101020.0,100990.0,0.06301357]
[1750641522714,0.06701994,101020.0,100990.0,0.06301357]
[1750641522928,0.34,101010.0,100990.0,0.06301357]
[1750641523143,0.36554543,101010.0,100990.0,0.06301357]
[1750641523923,0.36554543,101010.0,100990.0,0.07623906]
[1750641524160,0.36654543,101010.0,101000.0,0.07914132]
[1750641524382,0.0205785,101010.0,101000.0,0.14054132]
[1750641524631,0.0205785,101010.0,101000.0,0.14171132]
[1750641524855,0.05010393,101010.0,101000.0,0.14171132]
[1750641525071,0.0205785,101010.0,101000.0,0.14171132]
[1750641525528,0.01958178,101010.0,101000.0,0.14171132]
[1750641525742,0.01958512,101010.0,101000.0,0.14171132]
[1750641525969,0.01958512,101010.0,101000.0,0.06257]
[1750641526408,0.02058512,101010.0,101000.0,0.06257]
[1750641526657,0.01958512,101010.0,101000.0,0.06257]
[1750641526867,0.02058512,101010.0,101000.0,0.06457]
[1750641527890,0.02058512,101010.0,101000.0,0.0634]
[1750641528133,0.09018,101020.0,101000.0,0.0328]
[1750641528347,0.02964445,101010.0,101000.0,0.0328]
[1750641528584,0.09018,101020.0,101000.0,0.0328]
[1750641528796,0.1064427,101020.0,101000.0,0.0328]
[1750641529011,0.1064427,101020.0,101000.0,0.0653]
[1750641529427,0.1084427,101020.0,101000.0,0.0633]
[1750641529882,0.13848907,101020.0,101000.0,0.0643]
[1750641530096,0.13848907,101020.0,101000.0,0.001]
[1750641530331,0.4484427,101020.0,101000.0,0.001]
[1750641530562,0.13223361,101020.0,101000.0,0.001]
[1750641530777,0.34,101010.0,101000.0,0.001]
[1750641530989,0.34736973,101010.0,101000.0,0.001]
[1750641531308,0.3404,101010.0,101000.0,0.001]
[1750641531510,0.34737103,101010.0,101000.0,0.001]
[1750641531713,0.03679242,101010.0,101000.0,0.001]
[1750641531914,0.04924966,101010.0,101000.0,0.001]
[1750641532118,0.03639242,101010.0,101000.0,0.001]
[1750641532534,0.03639242,101010.0,100990.0,0.06673357]
[1750641532753,0.03739242,101010.0,101000.0,0.003]
[1750641533397,0.03739242,101010.0,100990.0,0.06673357]
[1750641533611,0.03639242,101010.0,100990.0,0.06673357]
[1750641533830,0.03739242,101010.0,100990.0,0.06973357]
[1750641534254,0.03739042,101010.0,100990.0,0.06973357]
[1750641535491,0.03839042,101010.0,100990.0,0.06973357]
[1750641538227,0.06599042,101010.0,100990.0,0.06973357]
[1750641538476,0.06599042,101010.0,100990.0,0.06856357]
[1750641538967,0.06599042,101010.0,100990.0,0.06973357]
[1750641539210,0.03839042,101010.0,100990.0,0.06973357]
[1750641540081,0.05696877,101010.0,100990.0,0.06973357]
[1750641540746,0.39696877,101010.0,100990.0,0.06973357]
[1750641541089,0.39696877,101010.0,100990.0,0.06856357]
[1750641541300,0.60470877,101010.0,100990.0,0.06856357]
[1750641541519,0.61439759,101010.0,100990.0,0.00356357]
[1750641541938,0.63817745,101010.0,100990.0,0.00356357]
[1750641542572,0.63817873,101010.0,100990.0,0.00356357]
[1750641543893,0.63817554,101010.0,100990.0,0.00356357]
[1750641545504,0.63816975,101010.0,100990.0,0.00356357]
[1750641546203,0.63816975,101010.0,100990.0,0.06366357]
[1750641546656,0.63816975,101010.0,100970.0,0.0001]
[1750641546657,0.0276,100990.0,100970.0,0.0644]
[1750641546908,0.0442,100980.0,100970.0,0.0644]
[1750641547110,0.06974221,100980.0,100970.0,0.0644]
[1750641547742,0.06974221,100980.0,100970.0,0.06557]
[1750641548180,0.06974221,100980.0,100970.0,0.0644]
[1750641548409,0.06277229,100980.0,100970.0,0.0011]
[1750641548615,0.42302193,100980.0,100970.0,0.0011]
[1750641548829,0.46852193,100980.0,100970.0,0.0001]
[1750641549050,0.46952193,100980.0,100970.0,0.0001]
[1750641549292,0.48969796,100980.0,100970.0,0.0021]
[1750641549527,0.4797959,100980.0,100970.0,0.0021]
[1750641549985,0.47052193,100980.0,100970.0,0.0021]
[1750641550642,0.48969737,100980.0,100970.0,0.0021]
[1750641550843,0.48042399,100980.0,100970.0,0.0021]
[1750641551072,0.49926127,100980.0,100970.0,0.0021]
[1750641551287,0.49923589,100980.0,100970.0,0.0021]
[1750641551712,0.0272,100970.0,100950.0,0.06428001]
[1750641551941,0.62499927,100970.0,100940.0,0.11131132]
[1750641552159,0.34,100950.0,100940.0,0.11014132]
[1750641552392,0.38424,100950.0,100940.0,0.11014132]
[1750641552602,0.54648,100950.0,100940.0,0.11014132]
[1750641552830,0.55937472,100950.0,100940.0,0.11014132]
[1750641553048,0.57789662,100950.0,100940.0,0.11127895]
[1750641553945,0.55937472,100950.0,100940.0,0.00123763]
[1750641554165,0.60822143,100950.0,100940.0,0.00123763]
[1750641554394,0.59009934,100950.0,100940.0,0.00123763]
[1750641554830,0.60858528,100950.0,100940.0,0.00023763]
[1750641555050,0.66872613,100950.0,100940.0,0.00023763]
[1750641555272,0.70930615,100950.0,100940.0,0.00023763]
[1750641555482,0.42939058,100950.0,100940.0,0.00023763]
[1750641555707,0.27742464,100950.0,100940.0,0.00023763]
[1750641555928,0.07090464,100950.0,100940.0,0.00023763]
[1750641556121,0.27742464,100950.0,100940.0,0.00023763]
[1750641556329,0.27782464,100950.0,100940.0,0.00023763]
[1750641556544,0.32360996,100950.0,100940.0,0.00023763]
[1750641557005,0.32361012,100950.0,100940.0,0.00023763]
[1750641557258,0.34191012,100950.0,100940.0,0.00023763]
[1750641557437,0.34188703,100950.0,100940.0,0.00023763]
[1750641557868,0.36335148,100950.0,100940.0,0.00023763]
[1750641558081,0.74306449,100950.0,100940.0,0.00023763]
[1750641558312,0.73315948,100950.0,100940.0,0.00023763]
[1750641559206,0.75677414,100950.0,100940.0,0.00023763]
[1750641559636,0.78551348,100950.0,100940.0,0.00023763]
[1750641559874,0.78551359,100950.0,100940.0,0.00023763]
[1750641560498,0.75677425,100950.0,100940.0,0.00023763]
[1750641560713,0.75676653,100950.0,100940.0,0.00023763]
[1750641560919,0.75576653,100950.0,100940.0,0.00023763]
[1750641561153,0.71076653,100950.0,100940.0,0.00023763]
[1750641561399,0.69618568,100950.0,100940.0,0.06383763]
[1750641561634,0.07090464,100950.0,100940.0,0.06502763]
[1750641562300,0.03332462,100950.0,100940.0,0.06502763]
[1750641562517,0.03132462,100950.0,100940.0,0.06502763]
[1750641562739,0.03032462,100950.0,100940.0,0.06702763]
[1750641562956,0.0442,100960.0,100950.0,0.0626]
[1750641563187,0.0442,100960.0,100950.0,0.06379]
[1750641563377,0.3842,100960.0,100950.0,0.06379]
[1750641564011,0.3842,100960.0,100950.0,0.06279]
[1750641564223,0.34,100960.0,100950.0,0.06279]
[1750641564452,0.20648,100970.0,100960.0,0.03349]
[1750641564645,0.54648,100970.0,100960.0,0.03349]
[1750641564897,0.54648,100970.0,100960.0,0.03249]
[1750641565071,0.3842,100970.0,100960.0,0.03249]
[1750641565354,0.192077,100980.0,100970.0,0.00119]
[1750641565355,0.073997,100980.0,100970.0,0.00119]
[1750641565587,0.3842,100980.0,100970.0,0.00019]
[1750641566065,0.00181,100970.0,100940.0,0.00023763]
[1750641566300,0.00181,100970.0,100950.0,0.07914132]
[1750641566958,0.3842,100980.0,100950.0,0.07914132]
[1750641567180,0.002,100970.0,100960.0,0.0329]
[1750641568060,0.002,100970.0,100960.0,0.0637]
[1750641568280,0.002,100970.0,100960.0,0.06489]
[1750641568513,0.41815085,100980.0,100970.0,0.0637]
[1750641568759,0.41815085,100980.0,100970.0,0.0607]
[1750641569400,0.41815085,100980.0,100970.0,0.0587]
[1750641569839,0.42115085,100980.0,100970.0,0.05989]
[1750641570266,0.37695085,100980.0,100970.0,0.05989]
[1750641570486,0.03695085,100980.0,100970.0,0.05989]
[1750641570931,0.03795085,100980.0,100970.0,0.06089]
[1750641571157,0.03795085,100980.0,100970.0,0.0597]
[1750641571378,0.03695085,100980.0,100970.0,0.05989]
[1750641571602,0.07176893,100980.0,100970.0,0.0587]
[1750641571822,0.07276893,100980.0,100970.0,0.0637]
[1750641572243,0.03495085,100980.0,100970.0,0.0637]
[1750641572711,0.03495085,100980.0,100970.0,0.06489]
[1750641573387,0.03495085,100980.0,100970.0,0.0637]
[1750641574489,0.06160664,100980.0,100970.0,0.005]
[1750641574705,0.22384664,100980.0,100970.0,0.005]
[1750641574919,0.2475191,100980.0,100970.0,0.005]
[1750641575139,0.27577244,100990.0,100970.0,0.005]
[1750641575352,0.33762782,100990.0,100970.0,0.005]
[1750641575796,0.371614,100990.0,100970.0,0.005]
[1750641576438,0.16224,100980.0,100970.0,0.005]
[1750641576649,0.16224,100980.0,100970.0,0.003]
[1750641576864,0.16224,100980.0,100960.0,0.06369]
[1750641577081,0.34,100970.0,100960.0,0.06369]
[1750641577714,0.34,100970.0,100960.0,0.05869]
[1750641577930,0.34,100970.0,100960.0,0.0605]
[1750641578137,0.34,100970.0,100960.0,0.06169]
[1750641578355,0.34,100970.0,100960.0,0.05869]
[1750641578560,0.34,100970.0,100960.0,0.06269]
[1750641578779,0.341,100970.0,100960.0,0.06769]
[1750641579683,0.341,100970.0,100960.0,0.08237313]
[1750641580822,0.341,100970.0,100960.0,0.06769]
[1750641581462,0.001,100970.0,100960.0,0.06769]
[1750641590851,0.001,100970.0,100960.0,0.0677]
[1750641591062,0.01956589,100970.0,100960.0,0.0677]
[1750641591288,0.001,100970.0,100960.0,0.0677]
[1750641591523,0.001,100970.0,100960.0,0.07447]
[1750641592831,0.001,100970.0,100960.0,0.0677]
[1750641597317,0.00797073,100970.0,100960.0,0.009]
[1750641597532,0.37776873,100970.0,100960.0,0.009]
[1750641597739,0.42015475,100970.0,100960.0,0.009]
[1750641597948,0.58235475,100970.0,100960.0,0.009]
[1750641598618,0.6367134,100970.0,100960.0,0.009]
[1750641598839,0.64035475,100970.0,100940.0,0.06433763]
[1750641599067,0.04412,100960.0,100940.0,0.06433763]
[1750641599293,0.06967936,100960.0,100940.0,0.06433763]
[1750641599973,0.06967936,100960.0,100940.0,0.06833763]
[1750641600608,0.06967936,100960.0,100940.0,0.06433763]
[1750641601017,0.07067936,100960.0,100940.0,0.06733763]
[1750641601851,0.41067936,100960.0,100940.0,0.06733763]
[1750641602964,0.40370863,100960.0,100940.0,0.06733763]
[1750641603824,0.40370863,100960.0,100950.0,0.032]
[1750641604473,0.40370863,100960.0,100950.0,0.0641]
[1750641604692,0.38512,100960.0,100950.0,0.0641]
[1750641606114,0.38412,100960.0,100950.0,0.0641]
[1750641606292,0.38512,100960.0,100950.0,0.0641]
[1750641606506,0.38512,100960.0,100920.0,0.08314132]
[1750641606507,0.34,100940.0,100920.0,0.0697]
[1750641606712,0.54636,100930.0,100920.0,0.06979202]
[1750641606915,0.54636,100930.0,100920.0,0.00399202]
[1750641607127,0.576169,100930.0,100920.0,0.00399202]
[1750641607317,0.60168911,100930.0,100920.0,0.00399202]
[1750641607520,0.61199608,100930.0,100920.0,0.00399202]
[1750641607715,0.66263605,100930.0,100920.0,0.00399202]
[1750641607942,0.65372908,100930.0,100920.0,0.00399202]
[1750641608263,0.70785573,100930.0,100920.0,0.00399202]
[1750641608463,0.7286082,100930.0,100920.0,0.00399202]
[1750641608822,0.73851576,100930.0,100920.0,0.00399202]
[1750641609027,0.75734754,100930.0,100920.0,0.00399202]
[1750641609308,0.75634754,100930.0,100920.0,0.00399202]
[1750641609512,0.74644008,100930.0,100920.0,0.00399202]
[1750641609755,0.75934744,100930.0,100920.0,0.00399202]
[1750641610379,0.38284085,100920.0,100910.0,0.0001]
[1750641610580,0.40870109,100920.0,100910.0,0.00023798]
[1750641611066,0.57182024,100920.0,100910.0,0.00023798]
[1750641611271,0.56483958,100920.0,100910.0,0.00023798]
[1750641612302,0.54636,100920.0,100910.0,0.06163798]
[1750641612526,0.20636,100920.0,100910.0,0.06163798]
[1750641612733,0.20736,100920.0,100910.0,0.06163798]
[1750641613535,0.001,100920.0,100910.0,0.06163798]
[1750641613768,0.2074,100920.0,100910.0,0.06163798]
[1750641617239,0.001,100920.0,100910.0,0.06163798]
[1750641617574,0.341,100920.0,100910.0,0.06163798]
[1750641618034,0.001,100920.0,100910.0,0.06163798]
[1750641622313,0.001,100920.0,100910.0,0.06043798]
[1750641622537,0.16324,100920.0,100910.0,0.00023798]
[1750641622764,0.20732,100920.0,100910.0,0.00023798]
[1750641623666,0.26142104,100920.0,100890.0,0.06449]
[1750641623914,0.31437318,100920.0,100890.0,0.06449]
[1750641624152,0.34418918,100920.0,100890.0,0.06449]
[1750641624373,0.35409723,100920.0,100890.0,0.06449]
[1750641624600,0.34318918,100920.0,100890.0,0.06449]
[1750641624822,0.35309723,100920.0,100890.0,0.06449]
[1750641625042,0.35409723,100920.0,100890.0,0.06449]
[1750641625512,0.35411104,100920.0,100890.0,0.06449]
[1750641625741,0.34420299,100920.0,100890.0,0.06449]
[1750641626470,0.34422263,100920.0,100890.0,0.06449]
[1750641626879,0.04412,100910.0,100890.0,0.06449]
[1750641627338,0.04065352,100910.0,100900.0,0.0632]
[1750641627571,0.08477352,100910.0,100900.0,0.06439]
[1750641627795,0.04412,100910.0,100900.0,0.06439]
[1750641628021,0.20636,100910.0,100900.0,0.06439]
[1750641628237,0.20636,100910.0,100900.0,0.0632]
[1750641628444,0.20736,100910.0,100900.0,0.0632]
[1750641628666,0.20736,100910.0,100900.0,0.0652]
[1750641628883,0.54736,100910.0,100900.0,0.0652]
[1750641629111,0.54636,100910.0,100900.0,0.0652]
[1750641629333,0.54736,100910.0,100900.0,0.0652]
[1750641630223,0.58695116,100910.0,100900.0,0.0652]
[1750641634268,0.38059116,100910.0,100900.0,0.0652]
[1750641634486,0.58695116,100910.0,100900.0,0.06639]
[1750641635430,0.58695116,100910.0,100900.0,0.0652]
[1750641636915,0.65618196,100910.0,100900.0,0.0652]
[1750641638570,0.65618196,100910.0,100900.0,0.073039]
[1750641638793,0.04059116,100910.0,100900.0,0.06639]
[1750641639023,0.08291329,100910.0,100900.0,0.06639]
[1750641639248,0.05915378,100910.0,100900.0,0.06639]
[1750641640152,0.04059116,100910.0,100900.0,0.06639]
[1750641640370,0.05914946,100910.0,100900.0,0.06639]
[1750641640923,0.05915001,100910.0,100900.0,0.06639]
[1750641641376,0.05915001,100910.0,100900.0,0.073039]
[1750641641617,0.04059116,100910.0,100900.0,0.073039]
[1750641647847,0.04059116,100910.0,100900.0,0.06639]
[1750641648430,0.04059116,100910.0,100900.0,0.0652]
[1750641648586,0.05913937,100910.0,100900.0,0.0652]
[1750641648896,0.05913937,100910.0,100900.0,0.06638]
[1750641649363,0.04059116,100910.0,100900.0,0.06638]
[1750641649590,0.05914353,100910.0,100900.0,0.06638]
[1750641652271,0.04059116,100910.0,100900.0,0.06638]
[1750641655662,0.04059116,100910.0,100900.0,0.0652]
[1750641656225,0.04059116,100910.0,100900.0,0.06638]
[1750641656561,0.04059116,100910.0,100900.0,0.0652]
[1750641657703,0.24715116,100910.0,100900.0,0.002]
[1750641658150,0.6057142,100910.0,100900.0,0.002]
[1750641658366,0.61267559,100910.0,100900.0,0.002]
[1750641660255,0.61227559,100910.0,100900.0,0.002]
[1750641660458,0.61227559,100910.0,100900.0,0.0352]
[1750641660664,0.4431542,100910.0,100900.0,0.06858]
[1750641660850,0.44315429,100910.0,100900.0,0.06858]
[1750641662138,0.44315429,100910.0,100900.0,0.0674]
[1750641662583,0.44315429,100910.0,100900.0,0.06858]
[1750641662584,0.38059116,100910.0,100900.0,0.06858]
[1750641673999,0.04059116,100910.0,100900.0,0.06858]
[1750641676154,0.23633,100930.0,100900.0,0.06858]
[1750641676363,0.27091891,100930.0,100900.0,0.06858]
[1750641676577,0.0004,100920.0,100900.0,0.06858]
[1750641677035,0.23646906,100930.0,100910.0,0.0322]
[1750641677241,0.27131911,100930.0,100910.0,0.0322]
[1750641677463,0.27131911,100930.0,100910.0,0.038958]
[1750641677674,0.27131896,100930.0,100910.0,0.064]
[1750641678137,0.26955081,100930.0,100910.0,0.064]
[1750641678372,0.29710322,100930.0,100910.0,0.064]
[1750641678582,0.33878525,100930.0,100910.0,0.064]
[1750641679020,0.31499676,100930.0,100910.0,0.064]
[1750641679239,0.31399676,100930.0,100910.0,0.064]
[1750641679458,0.31499676,100930.0,100910.0,0.065]
[1750641680111,0.34,100920.0,100910.0,0.065]
[1750641680342,0.35858306,100920.0,100910.0,0.065]
[1750641681203,0.35858306,100920.0,100910.0,0.064]
[1750641681428,0.36555143,100920.0,100910.0,0.065]
[1750641681642,0.36655143,100920.0,100910.0,0.065]
[1750641684047,0.34796837,100920.0,100910.0,0.065]
[1750641684268,0.36653986,100920.0,100910.0,0.065]
[1750641684504,0.36693986,100920.0,100900.0,0.0615]
[1750641684715,0.20596,100910.0,100900.0,0.0615]
[1750641685360,0.20596,100910.0,100900.0,0.06269]
[1750641685578,0.20596,100910.0,100900.0,0.0615]
[1750641685819,0.20596,100910.0,100900.0,0.0625]
[1750641686916,0.54596,100910.0,100900.0,0.001]